fUST/lending_fUST_20260513
["ID","MTS","AMOUNT","RATE_DAILY","PERIOD"]
[422130206,1778602114000,312.0049012,6e-05,10]
[422130278,1778602232000,-5000.0,5.88e-05,2]
[422130277,1778602232000,-2962.87162929,5.821e-05,2]
[422130280,1778602232000,-1200.0,5.998e-05,2]
[422130279,1778602232000,-5000.0,5.939e-05,2]
[422130283,1778602232000,-300.0,5.999e-05,2]
[422130281,1778602232000,-300.0,5.999e-05,2]
[422130282,1778602232000,-300.0,5.999e-05,2]
[422130285,1778602232000,-18181.85,6e-05,2]
[422130284,1778602232000,-300.0,5.999e-05,2]
[422130286,1778602232000,-2012.20478813,6.119e-05,2]
[422130288,1778602232000,-300.0,6.119e-05,2]
[422130295,1778602232000,-300.0,6.119e-05,2]
[422130290,1778602232000,-300.0,6.119e-05,2]
[422130289,1778602232000,-300.0,6.119e-05,2]
[422130292,1778602232000,-300.0,6.119e-05,2]
[422130298,1778602232000,-300.0,6.119e-05,2]
[422130291,1778602232000,-300.0,6.119e-05,2]
[422130294,1778602232000,-300.0,6.119e-05,2]
[422130287,1778602232000,-300.0,6.119e-05,2]
[422130293,1778602232000,-300.0,6.119e-05,2]
[422130296,1778602232000,-300.0,6.119e-05,2]
[422130297,1778602232000,-300.0,6.119e-05,2]
[422130299,1778602232000,-300.0,6.119e-05,2]
[422130310,1778602233000,-1000.0,8.306e-05,2]
[422130320,1778602233000,-244.0,9.137e-05,2]
[422130314,1778602233000,-2215.0,8.918e-05,2]
[422130315,1778602233000,-647.0,8.918e-05,2]
[422130313,1778602233000,-1411.0,8.918e-05,2]
[422130316,1778602233000,-741.0,8.918e-05,2]
[422130309,1778602233000,-864.0,7.551e-05,2]
[422130308,1778602233000,-587.0,7.259e-05,2]
[422130302,1778602233000,-600.0,6.24e-05,2]
[422130303,1778602233000,-285.21400909,6.515e-05,2]
[422130304,1778602233000,-420.0,6.599e-05,2]
[422130305,1778602233000,-720.0,6.864e-05,2]
[422130306,1778602233000,-152.0,7.159e-05,7]
[422130317,1778602233000,-185.0,8.918e-05,2]
[422130300,1778602233000,-300.0,6.119e-05,2]
[422130311,1778602233000,-1100.0,8.5e-05,7]
[422130312,1778602233000,-336.55253072,8.515e-05,2]
[422130301,1778602233000,-300.0,6.119e-05,2]
[422130307,1778602233000,-152.0,7.159e-05,7]
[422130319,1778602233000,-1000.0,9.137e-05,2]
[422130324,1778602233000,-300.58307874,9.442e-05,2]
[422130321,1778602233000,-599.60298507,9.332e-05,2]
[422130339,1778602233000,-500.0,0.00010857,2]
[422130340,1778602233000,-500.0,0.00010857,2]
[422130334,1778602233000,-195.30975823,0.00010857,2]
[422130335,1778602233000,-197.89700552,0.00010857,2]
[422130330,1778602233000,-151.5,0.00010684,2]
[422130331,1778602233000,-257.81112426,0.00010684,2]
[422130327,1778602233000,-235.22118832,0.0001017,2]
[422130336,1778602233000,-500.0,0.00010857,2]
[422130333,1778602233000,-4652.75404022,0.000108,2]
[422130332,1778602233000,-500.0,0.00010684,2]
[422130337,1778602233000,-500.0,0.00010857,2]
[422130338,1778602233000,-500.0,0.00010857,2]
[422130329,1778602233000,-151.5,0.00010684,2]
[422130328,1778602233000,-387.89105236,0.00010515,2]
[422130342,1778602233000,-9145.18652223,0.00010858,2]
[422130326,1778602233000,-492.0,0.0001005,2]
[422130322,1778602233000,-1957.856,9.332e-05,2]
[422130323,1778602233000,-2030.296672,9.387e-05,2]
[422130325,1778602233000,-1000.0,0.0001005,2]
[422130341,1778602233000,-537.01740837,0.00010857,2]
[422130318,1778602233000,-443.0,8.918e-05,2]
[422130373,1778602241000,-500.0,0.00010858,2]
[422130406,1778602244000,-1990.70963771,0.00010858,2]
[422130411,1778602247000,-455.0,0.00010858,2]
[422130461,1778602411000,300.0,9.14e-05,30]
[422130495,1778603189000,223.79057452,0.00013998,120]
[422130496,1778603191000,170.19632751,0.00013938,30]
[422130535,1778603431000,-483.00724153,7.493e-05,2]
[422130534,1778603431000,-3260.0,7.493e-05,2]
[422130537,1778603431000,-5000.0,7.645e-05,2]
[422130536,1778603431000,-1187.30518853,7.569e-05,2]
[422130538,1778603431000,-1200.0,7.721e-05,2]
[422130539,1778603431000,-300.0,7.76e-05,2]
[422130542,1778603431000,-15659.1071325,8e-05,2]
[422130541,1778603431000,-281.79786615,7.761e-05,2]
[422130540,1778603431000,-300.0,7.76e-05,2]
[422130572,1778603438000,-1483.71104754,8e-05,2]
[422130601,1778603454000,-191.9171519,8.788e-05,2]
[422130598,1778603454000,-268.18181996,8e-05,2]
[422130599,1778603454000,-180.43500871,8.217e-05,2]
[422130600,1778603454000,-152.0,8.332e-05,7]
[422130605,1778603454000,-741.0,9.109e-05,2]
[422130603,1778603454000,-177.755,9.109e-05,2]
[422130602,1778603454000,-210.22136415,9.009e-05,2]
[422130607,1778603454000,-300.0,9.242e-05,2]
[422130604,1778603454000,-443.0,9.109e-05,2]
[422130606,1778603454000,-185.0,9.109e-05,2]
[422130609,1778603454000,-3742.72317846,0.00010558,2]
[422130608,1778603454000,-332.52148206,9.761e-05,2]
[422130610,1778603454000,-2934.16492883,7.92e-05,2]
[422130615,1778603455000,-275.91218586,0.00010657,2]
[422130613,1778603455000,-155.0,0.00010657,2]
[422130616,1778603455000,-500.0,0.00010657,2]
[422130614,1778603455000,-500.0,0.00010657,2]
[422130612,1778603455000,-10538.3524542,0.00010558,2]
[422130617,1778603455000,-500.0,0.00010657,2]
[422130618,1778603455000,-166.69792972,0.00010657,2]
[422130619,1778603455000,-108893.58520539,0.00010658,2]
[422130620,1778603455000,-1794.10112464,0.00010658,2]
[422130611,1778603455000,-2065.83507117,7.92e-05,2]
[422130621,1778603456000,152.0,0.00013519,30]
[422130627,1778603541000,152.0,0.00013508,30]
[422130698,1778604632000,-500.0,8.058e-05,2]
[422130709,1778604632000,-500.0,8.058e-05,2]
[422130710,1778604632000,-500.0,8.058e-05,2]
[422130699,1778604632000,-500.0,8.058e-05,2]
[422130702,1778604632000,-500.0,8.058e-05,2]
[422130694,1778604632000,-500.0,8.058e-05,2]
[422130701,1778604632000,-500.0,8.058e-05,2]
[422130692,1778604632000,-500.0,8.058e-05,2]
[422130689,1778604632000,-500.0,8.058e-05,2]
[422130704,1778604632000,-500.0,8.058e-05,2]
[422130700,1778604632000,-500.0,8.058e-05,2]
[422130703,1778604632000,-500.0,8.058e-05,2]
[422130720,1778604632000,-500.0,8.058e-05,2]
[422130708,1778604632000,-500.0,8.058e-05,2]
[422130707,1778604632000,-500.0,8.058e-05,2]
[422130711,1778604632000,-500.0,8.058e-05,2]
[422130714,1778604632000,-500.0,8.058e-05,2]
[422130713,1778604632000,-500.0,8.058e-05,2]
[422130715,1778604632000,-267.11166382,8.058e-05,2]
[422130717,1778604632000,-500.0,8.058e-05,2]
[422130697,1778604632000,-500.0,8.058e-05,2]
[422130712,1778604632000,-500.0,8.058e-05,2]
[422130722,1778604632000,-650.0,8.058e-05,2]
[422130724,1778604632000,-272.79009297,8.058e-05,2]
[422130716,1778604632000,-500.0,8.058e-05,2]
[422130705,1778604632000,-500.0,8.058e-05,2]
[422130696,1778604632000,-500.0,8.058e-05,2]
[422130686,1778604632000,-500.0,8.058e-05,2]
[422130690,1778604632000,-500.0,8.058e-05,2]
[422130666,1778604632000,-5000.0,6.757e-05,2]
[422130669,1778604632000,-296.95631793,6.929e-05,2]
[422130667,1778604632000,-940.424,6.825e-05,2]
[422130670,1778604632000,-1200.0,7.616e-05,2]
[422130668,1778604632000,-1314.60368222,6.825e-05,2]
[422130671,1778604632000,-225.0,7.617e-05,2]
[422130672,1778604632000,-300.0,7.617e-05,2]
[422130676,1778604632000,-569.99866659,7.622e-05,2]
[422130674,1778604632000,-300.0,7.617e-05,2]
[422130675,1778604632000,-300.0,7.617e-05,2]
[422130682,1778604632000,-439.06521334,8.058e-05,2]
[422130673,1778604632000,-300.0,7.617e-05,2]
[422130683,1778604632000,-500.0,8.058e-05,2]
[422130681,1778604632000,-500.0,8.058e-05,2]
[422130678,1778604632000,-176.747651,7.627e-05,2]
[422130679,1778604632000,-50000.0,8.058e-05,2]
[422130680,1778604632000,-530.69185656,8.058e-05,2]
[422130677,1778604632000,-210.22136415,7.622e-05,2]
[422130721,1778604632000,-500.0,8.058e-05,2]
[422130684,1778604632000,-500.0,8.058e-05,2]
[422130687,1778604632000,-500.0,8.058e-05,2]
[422130688,1778604632000,-500.0,8.058e-05,2]
[422130693,1778604632000,-500.0,8.058e-05,2]
[422130695,1778604632000,-500.0,8.058e-05,2]
[422130691,1778604632000,-500.0,8.058e-05,2]
[422130685,1778604632000,-500.0,8.058e-05,2]
[422130718,1778604632000,-500.0,8.058e-05,2]
[422130706,1778604632000,-500.0,8.058e-05,2]
[422130719,1778604632000,-500.0,8.058e-05,2]
[422130764,1778604632000,-414.0,8.379e-05,2]
[422130763,1778604632000,-1680.0,8.378e-05,2]
[422130754,1778604632000,-300.0,8.159e-05,2]
[422130755,1778604632000,-300.0,8.159e-05,2]
[422130765,1778604632000,-420.0,8.379e-05,2]
[422130760,1778604632000,-600.0,8.321e-05,2]
[422130756,1778604632000,-300.0,8.159e-05,2]
[422130757,1778604632000,-300.0,8.159e-05,2]
[422130759,1778604632000,-500.0,8.219e-05,2]
[422130758,1778604632000,-173.86797391,8.159e-05,2]
[422130761,1778604632000,-152.0,8.33e-05,7]
[422130762,1778604632000,-152.0,8.332e-05,7]
[422130752,1778604632000,-300.0,8.159e-05,2]
[422130767,1778604632000,-500.0,8.493e-05,2]
[422130768,1778604632000,-173.7012865,8.52e-05,2]
[422130779,1778604632000,-2208.121,9.281e-05,2]
[422130778,1778604632000,-1414.362,9.281e-05,2]
[422130769,1778604632000,-173.86797391,8.637e-05,2]
[422130776,1778604632000,-500.0,9.217e-05,2]
[422130775,1778604632000,-2351.0,9.215e-05,2]
[422130770,1778604632000,-302.6064143,8.767e-05,2]
[422130771,1778604632000,-350.40845516,8.929e-05,2]
[422130773,1778604632000,-173.86797391,9.114e-05,2]
[422130772,1778604632000,-250.61409308,9.109e-05,2]
[422130774,1778604632000,-720.0,9.153e-05,2]
[422130723,1778604632000,-500.0,8.058e-05,2]
[422130766,1778604632000,-287.49,8.411e-05,2]
[422130753,1778604632000,-300.0,8.159e-05,2]
[422130777,1778604632000,-649.823,9.281e-05,2]
[422130751,1778604632000,-300.0,8.159e-05,2]
[422130737,1778604632000,-500.0,8.058e-05,2]
[422130736,1778604632000,-500.0,8.058e-05,2]
[422130731,1778604632000,-500.0,8.058e-05,2]
[422130725,1778604632000,-500.0,8.058e-05,2]
[422130729,1778604632000,-500.0,8.058e-05,2]
[422130730,1778604632000,-230.11140406,8.058e-05,2]
[422130732,1778604632000,-500.0,8.058e-05,2]
[422130728,1778604632000,-500.0,8.058e-05,2]
[422130735,1778604632000,-500.0,8.058e-05,2]
[422130727,1778604632000,-500.0,8.058e-05,2]
[422130726,1778604632000,-500.0,8.058e-05,2]
[422130780,1778604632000,-443.0,9.281e-05,2]
[422130734,1778604632000,-500.0,8.058e-05,2]
[422130738,1778604632000,-500.0,8.058e-05,2]
[422130748,1778604632000,-300.0,8.159e-05,2]
[422130750,1778604632000,-300.0,8.159e-05,2]
[422130743,1778604632000,-300.0,8.159e-05,2]
[422130749,1778604632000,-300.0,8.159e-05,2]
[422130733,1778604632000,-500.0,8.058e-05,2]
[422130747,1778604632000,-300.0,8.159e-05,2]
[422130745,1778604632000,-300.0,8.159e-05,2]
[422130741,1778604632000,-500.0,8.058e-05,2]
[422130739,1778604632000,-500.0,8.058e-05,2]
[422130742,1778604632000,-205.27528512,8.058e-05,2]
[422130740,1778604632000,-500.0,8.058e-05,2]
[422130744,1778604632000,-300.0,8.159e-05,2]
[422130746,1778604632000,-300.0,8.159e-05,2]
[422130787,1778604633000,-383.8343038,9.94e-05,2]
[422130781,1778604633000,-741.0,9.281e-05,2]
[422130782,1778604633000,-185.0,9.281e-05,2]
[422130783,1778604633000,-173.86797391,9.592e-05,2]
[422130789,1778604633000,-100010.96549905,0.0001,2]
[422130786,1778604633000,-11174.5258808,9.94e-05,2]
[422130785,1778604633000,-287.49,9.792e-05,2]
[422130784,1778604633000,-412.535,9.7e-05,2]
[422130790,1778604633000,-608.24692022,0.0001,2]
[422130788,1778604633000,-173.86797391,9.969e-05,2]
[422130824,1778604638000,-432.0,0.0001041,2]
[422130821,1778604638000,-500.0,0.0001041,2]
[422130825,1778604638000,-151.5,0.0001041,2]
[422130826,1778604638000,-665.89249759,0.00010884,2]
[422130820,1778604638000,-500.0,0.0001041,2]
[422130828,1778604638000,-2529.4,0.000109,2]
[422130827,1778604638000,-2660.90642038,0.00010884,2]
[422130836,1778604638000,-500.0,0.00010958,2]
[422130838,1778604638000,-500.0,0.00010958,2]
[422130839,1778604638000,-600.61653197,0.00010958,2]
[422130823,1778604638000,-500.0,0.0001041,2]
[422130822,1778604638000,-500.0,0.0001041,2]
[422130815,1778604638000,-500.0,0.0001041,2]
[422130818,1778604638000,-500.0,0.0001041,2]
[422130817,1778604638000,-431.30034552,0.0001041,2]
[422130816,1778604638000,-500.0,0.0001041,2]
[422130814,1778604638000,-500.0,0.0001041,2]
[422130812,1778604638000,-864.0,0.00010069,2]
[422130813,1778604638000,-111629.23458175,0.00010388,2]
[422130811,1778604638000,-299380.78758073,0.0001,2]
[422130810,1778604638000,-500.0,9.999e-05,2]
[422130808,1778604638000,-161.47693684,9.999e-05,2]
[422130809,1778604638000,-243.1385301,9.999e-05,2]
[422130807,1778604638000,-338.52306316,9.999e-05,2]
[422130819,1778604638000,-500.0,0.0001041,2]
[422130833,1778604638000,-500.0,0.00010958,2]
[422130834,1778604638000,-500.0,0.00010958,2]
[422130830,1778604638000,-641.4372,0.00010958,2]
[422130832,1778604638000,-500.0,0.00010958,2]
[422130859,1778604638000,-500.0,0.00010958,2]
[422130858,1778604638000,-500.0,0.00010958,2]
[422130856,1778604638000,-868.87,0.00010958,2]
[422130855,1778604638000,-500.0,0.00010958,2]
[422130860,1778604638000,-500.0,0.00010958,2]
[422130857,1778604638000,-536.69,0.00010958,2]
[422130852,1778604638000,-241.42829694,0.00010958,2]
[422130853,1778604638000,-500.0,0.00010958,2]
[422130849,1778604638000,-500.0,0.00010958,2]
[422130848,1778604638000,-500.0,0.00010958,2]
[422130847,1778604638000,-500.0,0.00010958,2]
[422130854,1778604638000,-500.0,0.00010958,2]
[422130850,1778604638000,-500.0,0.00010958,2]
[422130846,1778604638000,-500.0,0.00010958,2]
[422130835,1778604638000,-500.0,0.00010958,2]
[422130831,1778604638000,-1905.77,0.00010958,2]
[422130837,1778604638000,-500.0,0.00010958,2]
[422130840,1778604638000,-500.0,0.00010958,2]
[422130841,1778604638000,-500.0,0.00010958,2]
[422130829,1778604638000,-403.86059238,0.00010929,2]
[422130844,1778604638000,-500.0,0.00010958,2]
[422130845,1778604638000,-500.0,0.00010958,2]
[422130843,1778604638000,-500.0,0.00010958,2]
[422130842,1778604638000,-500.0,0.00010958,2]
[422130851,1778604638000,-500.0,0.00010958,2]
[422130899,1778604639000,-2353.98867026,0.00010959,2]
[422130897,1778604639000,-203.27,0.00010959,2]
[422130890,1778604639000,-500.0,0.00010958,2]
[422130892,1778604639000,-500.0,0.00010958,2]
[422130900,1778604639000,-4136.762269,0.00011,2]
[422130901,1778604639000,-577.62289465,0.00011011,2]
[422130894,1778604639000,-500.0,0.00010958,2]
[422130895,1778604639000,-500.0,0.00010958,2]
[422130898,1778604639000,-228.0,0.00010959,3]
[422130896,1778604639000,-500.0,0.00010958,2]
[422130893,1778604639000,-500.0,0.00010958,2]
[422130906,1778604639000,-500.0,0.00011232,2]
[422130918,1778604639000,-529.28869552,0.00011232,2]
[422130905,1778604639000,-1905.77,0.00011232,2]
[422130903,1778604639000,-181.6,0.00011162,2]
[422130907,1778604639000,-557.38205046,0.00011232,2]
[422130904,1778604639000,-641.4372,0.00011232,2]
[422130914,1778604639000,-500.0,0.00011232,2]
[422130913,1778604639000,-500.0,0.00011232,2]
[422130902,1778604639000,-1000.0,0.00011075,2]
[422130910,1778604639000,-500.0,0.00011232,2]
[422130909,1778604639000,-500.0,0.00011232,2]
[422130912,1778604639000,-500.0,0.00011232,2]
[422130915,1778604639000,-500.0,0.00011232,2]
[422130891,1778604639000,-500.0,0.00010958,2]
[422130911,1778604639000,-554.80246219,0.00011232,2]
[422130883,1778604639000,-500.0,0.00010958,2]
[422130872,1778604639000,-500.0,0.00010958,2]
[422130881,1778604639000,-500.0,0.00010958,2]
[422130917,1778604639000,-500.0,0.00011232,2]
[422130864,1778604639000,-500.0,0.00010958,2]
[422130863,1778604639000,-712.7,0.00010958,2]
[422130862,1778604639000,-4085.15,0.00010958,2]
[422130861,1778604639000,-500.0,0.00010958,2]
[422130865,1778604639000,-644.00833944,0.00010958,2]
[422130868,1778604639000,-500.0,0.00010958,2]
[422130867,1778604639000,-500.0,0.00010958,2]
[422130866,1778604639000,-500.0,0.00010958,2]
[422130869,1778604639000,-500.0,0.00010958,2]
[422130876,1778604639000,-500.0,0.00010958,2]
[422130875,1778604639000,-500.0,0.00010958,2]
[422130878,1778604639000,-500.0,0.00010958,2]
[422130874,1778604639000,-500.0,0.00010958,2]
[422130871,1778604639000,-535.3,0.00010958,2]
[422130870,1778604639000,-500.0,0.00010958,2]
[422130879,1778604639000,-500.0,0.00010958,2]
[422130877,1778604639000,-500.0,0.00010958,2]
[422130889,1778604639000,-500.0,0.00010958,2]
[422130880,1778604639000,-500.0,0.00010958,2]
[422130887,1778604639000,-500.0,0.00010958,2]
[422130888,1778604639000,-500.0,0.00010958,2]
[422130884,1778604639000,-500.0,0.00010958,2]
[422130885,1778604639000,-500.0,0.00010958,2]
[422130882,1778604639000,-500.0,0.00010958,2]
[422130886,1778604639000,-821.64,0.00010958,2]
[422130873,1778604639000,-845.47,0.00010958,2]
[422130916,1778604639000,-500.0,0.00011232,2]
[422130908,1778604639000,-500.0,0.00011232,2]
[422130920,1778604639000,-500.0,0.00011232,2]
[422130951,1778604639000,-821.64,0.00011232,2]
[422130961,1778604639000,-500.0,0.00011232,2]
[422130959,1778604639000,-500.0,0.00011232,2]
[422130964,1778604639000,-161.62975969,0.00011345,2]
[422130949,1778604639000,-500.0,0.00011232,2]
[422130965,1778604639000,-10366.81419517,0.000114,2]
[422130955,1778604639000,-500.0,0.00011232,2]
[422130953,1778604639000,-500.0,0.00011232,2]
[422130969,1778604639000,-9916.88971598,0.000115,2]
[422130966,1778604639000,-9916.88971598,0.000114,2]
[422130968,1778604639000,-10366.81419517,0.000115,2]
[422130971,1778604639000,-1905.77,0.00011506,2]
[422130963,1778604639000,-2429.07761943,0.00011276,2]
[422130976,1778604639000,-500.0,0.00011506,2]
[422130977,1778604639000,-500.0,0.00011506,2]
[422130972,1778604639000,-500.0,0.00011506,2]
[422130970,1778604639000,-641.4372,0.00011506,2]
[422130974,1778604639000,-500.0,0.00011506,2]
[422130973,1778604639000,-500.0,0.00011506,2]
[422130978,1778604639000,-500.0,0.00011506,2]
[422130979,1778604639000,-507.46,0.00011506,2]
[422130980,1778604639000,-500.0,0.00011506,2]
[422130982,1778604639000,-868.87,0.00011506,2]
[422130984,1778604639000,-536.69,0.00011506,2]
[422130985,1778604639000,-500.0,0.00011506,2]
[422130919,1778604639000,-500.0,0.00011232,2]
[422130967,1778604639000,-152.0,0.00011476,2]
[422130947,1778604639000,-500.0,0.00011232,2]
[422130975,1778604639000,-500.0,0.00011506,2]
[422130945,1778604639000,-500.0,0.00011232,2]
[422130962,1778604639000,-500.0,0.00011232,2]
[422130921,1778604639000,-868.87,0.00011232,2]
[422130924,1778604639000,-500.0,0.00011232,2]
[422130923,1778604639000,-500.0,0.00011232,2]
[422130922,1778604639000,-536.69,0.00011232,2]
[422130925,1778604639000,-500.0,0.00011232,2]
[422130926,1778604639000,-4085.15,0.00011232,2]
[422130931,1778604639000,-500.0,0.00011232,2]
[422130927,1778604639000,-712.7,0.00011232,2]
[422130932,1778604639000,-500.0,0.00011232,2]
[422130929,1778604639000,-500.0,0.00011232,2]
[422130930,1778604639000,-500.0,0.00011232,2]
[422130933,1778604639000,-482.56,0.00011232,2]
[422130928,1778604639000,-500.0,0.00011232,2]
[422130938,1778604639000,-500.0,0.00011232,2]
[422130935,1778604639000,-500.0,0.00011232,2]
[422130936,1778604639000,-845.47,0.00011232,2]
[422130937,1778604639000,-163.50375507,0.00011232,2]
[422130944,1778604639000,-500.0,0.00011232,2]
[422130941,1778604639000,-500.0,0.00011232,2]
[422130940,1778604639000,-500.0,0.00011232,2]
[422130942,1778604639000,-500.0,0.00011232,2]
[422130939,1778604639000,-500.0,0.00011232,2]
[422130934,1778604639000,-535.3,0.00011232,2]
[422130943,1778604639000,-500.0,0.00011232,2]
[422130957,1778604639000,-500.0,0.00011232,2]
[422130986,1778604639000,-500.0,0.00011506,2]
[422131010,1778604640000,-500.0,0.00011506,2]
[422131011,1778604640000,-500.0,0.00011506,2]
[422131022,1778604640000,-1905.77,0.0001178,2]
[422131007,1778604640000,-821.64,0.00011506,2]
[422131018,1778604640000,-9916.88971598,0.000117,2]
[422131009,1778604640000,-549.29307045,0.00011506,2]
[422131008,1778604640000,-500.0,0.00011506,2]
[422131016,1778604640000,-325.8415176,0.00011663,2]
[422131013,1778604640000,-500.0,0.00011506,2]
[422131014,1778604640000,-10366.81419517,0.000116,2]
[422131017,1778604640000,-10366.81419517,0.000117,2]
[422131015,1778604640000,-9916.88971598,0.000116,2]
[422131026,1778604640000,-500.0,0.0001178,2]
[422131004,1778604640000,-500.0,0.00011506,2]
[422131012,1778604640000,-500.0,0.00011506,2]
[422131001,1778604640000,-500.0,0.00011506,2]
[422130990,1778604640000,-500.0,0.00011506,2]
[422130999,1778604640000,-500.0,0.00011506,2]
[422131028,1778604640000,-500.0,0.0001178,2]
[422130989,1778604640000,-712.7,0.00011506,2]
[422130993,1778604640000,-500.0,0.00011506,2]
[422130987,1778604640000,-500.0,0.00011506,2]
[422130988,1778604640000,-4085.15,0.00011506,2]
[422130991,1778604640000,-500.0,0.00011506,2]
[422131000,1778604640000,-500.0,0.00011506,2]
[422130994,1778604640000,-500.0,0.00011506,2]
[422130995,1778604640000,-535.3,0.00011506,2]
[422130998,1778604640000,-500.0,0.00011506,2]
[422130996,1778604640000,-500.0,0.00011506,2]
[422131005,1778604640000,-252.21888727,0.00011506,2]
[422131003,1778604640000,-500.0,0.00011506,2]
[422131002,1778604640000,-500.0,0.00011506,2]
[422131006,1778604640000,-380.0840819,0.00011506,2]
[422131021,1778604640000,-611.4004,0.0001178,2]
[422130997,1778604640000,-845.47,0.00011506,2]
[422131027,1778604640000,-500.0,0.0001178,2]
[422131051,1778604640000,-500.0,0.0001178,2]
[422131054,1778604640000,-500.0,0.0001178,2]
[422131050,1778604640000,-500.0,0.0001178,2]
[422131052,1778604640000,-500.0,0.0001178,2]
[422131057,1778604640000,-5987.09701166,0.000119,2]
[422131053,1778604640000,-500.0,0.0001178,2]
[422131049,1778604640000,-821.64,0.0001178,2]
[422131043,1778604640000,-500.0,0.0001178,2]
[422131045,1778604640000,-500.0,0.0001178,2]
[422131046,1778604640000,-500.0,0.0001178,2]
[422131047,1778604640000,-500.0,0.0001178,2]
[422131048,1778604640000,-500.0,0.0001178,2]
[422131055,1778604640000,-10366.81419517,0.000118,2]
[422131024,1778604640000,-500.0,0.0001178,2]
[422131044,1778604640000,-500.0,0.0001178,2]
[422131042,1778604640000,-500.0,0.0001178,2]
[422131056,1778604640000,-9916.88971598,0.000118,2]
[422131040,1778604640000,-500.0,0.0001178,2]
[422131025,1778604640000,-500.0,0.0001178,2]
[422131023,1778604640000,-297.0,0.0001178,2]
[422131019,1778604640000,-155.0,0.00011723,2]
[422131029,1778604640000,-500.0,0.0001178,2]
[422131020,1778604640000,-200.0,0.00011743,2]
[422131041,1778604640000,-845.47,0.0001178,2]
[422131037,1778604640000,-500.0,0.0001178,2]
[422131030,1778604640000,-868.87,0.0001178,2]
[422131039,1778604640000,-535.3,0.0001178,2]
[422131034,1778604640000,-712.7,0.0001178,2]
[422131035,1778604640000,-500.0,0.0001178,2]
[422131031,1778604640000,-536.69,0.0001178,2]
[422131033,1778604640000,-4085.15,0.0001178,2]
[422131032,1778604640000,-500.0,0.0001178,2]
[422131036,1778604640000,-500.0,0.0001178,2]
[422131038,1778604640000,-400.25812976,0.0001178,2]
[422131060,1778604642000,-450.99605596,0.00011276,2]
[422131059,1778604642000,-152.0,8.484e-05,7]
[422131088,1778604646000,-929.25803443,0.00011662,2]
[422131090,1778604646000,-859.05073875,0.000119,2]
[422131089,1778604646000,-3070.74196557,0.000119,2]
[422131092,1778604646000,-444.55694226,0.000119,2]
[422131094,1778604646000,-2507.16835398,0.000119,2]
[422131095,1778604646000,-2356.56660322,0.00012,2]
[422131091,1778604646000,-2529.4,0.000119,2]
[422131096,1778604647000,-2000.0,0.00012,2]
[422131099,1778604747000,151.0,0.00014,30]
[422131100,1778604793000,3000.0,0.00014,30]
[422131108,1778605293000,-438.01035,8.31e-05,2]
[422131109,1778605303000,152.0,0.00013601,30]
[422131111,1778605341000,152.0,0.00013601,30]
[422131116,1778605402000,152.0,0.00013601,30]
[422131154,1778605828000,238.33853,5e-05,2]
[422131153,1778605828000,200.0,5e-05,2]
[422131192,1778605832000,-429.57835,7.301e-05,2]
[422131193,1778605832000,-2918.96980372,7.375e-05,2]
[422131219,1778605838000,-152.0,8.484e-05,7]
[422131220,1778605838000,-160.43837256,8.7e-05,2]
[422131218,1778605838000,-152.0,8.446e-05,7]
[422131221,1778605838000,-1187.0,8.896e-05,2]
[422131222,1778605838000,-300.0,8.897e-05,2]
[422131214,1778605838000,-2081.03019628,7.375e-05,2]
[422131215,1778605838000,-1767.07218853,7.6e-05,2]